Workbook

Sheet Sheet1
A1: Reserve Name | B1: Latitude (DMS) | C1: Longitude (DMS)
A2: Emerald Valley Reserve | B2: 34° 12' 30" N | C2: 118° 15' 45" W | D2: =_xlfn.TEXTBEFORE(B2, "°")+_xlfn.TEXTBEFORE(_xlfn.TEXTAFTER(B2, "°"), "'")/60+_xlfn.TEXTBEFORE(_xlfn.TEXTAFTER(B2,"'"),"""")/3600 -> 34.20833333
A3: Silver Lake Preserve | B3: 45° 30' 15" N | C3: 120° 45' 30" W | D3: =_xlfn.TEXTBEFORE(B3, "°")+_xlfn.TEXTBEFORE(_xlfn.TEXTAFTER(B3, "°"), "'")/60+_xlfn.TEXTBEFORE(_xlfn.TEXTAFTER(B3,"'"),"""")/3600 -> 45.50416667
A4: Golden Meadow Sanctuary | B4: 36° 45' 0" N | C4: 98° 30' 0" W | D4: 36.75
A5: Crystal Falls Reserve | B5: 39° 15' 30" N | C5: 105° 30' 15" W | D5: 39.25833333
A6: Blue Ridge Wildlife Refuge | B6: 38° 20' 0" N | C6: 82° 15' 0" W | D6: 38.33333333
A7: Mystic Forest Preserve | B7: 42° 10' 0" N | C7: 74° 5' 0" W | D7: 42.16666667
A8: Twilight Canyon Reserve | B8: 33° 45' 15" N | C8: 116° 30' 30" W | D8: 33.75416667
A9: Starlight Marsh Sanctuary | B9: 29° 30' 0" N | C9: 81° 15' 0" W | D9: 29.5
A10: Whispering Pines Reserve | B10: 37° 25' 0" N | C10: 122° 10' 0" W | D10: 37.41666667
A11: Frosty Peaks Nature Reserve | B11: 40° 30' 0" N | C11: 105° 15' 0" W | D11: 40.5

Sheet Sheet2
A1: Reserve Name | B1: Latitude (DMS) | C1: Longitude (DMS)
A2: Emerald Valley Reserve | B2: 34° 12' 30" N | C2: 118° 15' 45" W | D2: =LEFT(B2, FIND("°", B2) - 1) + (MID(B2, FIND("°", B2) + 1, FIND("'", B2) - FIND("°", B2) - 1) / 60) + (MID(B2, FIND("'", B2) + 1, FIND("""", B2) - FIND("'", B2) - 1) / 3600) -> 34.20833333
A3: Silver Lake Preserve | B3: 45° 30' 15" N | C3: 120° 45' 30" W | D3: =LEFT(B3, FIND("°", B3) - 1) + (MID(B3, FIND("°", B3) + 1, FIND("'", B3) - FIND("°", B3) - 1) / 60) + (MID(B3, FIND("'", B3) + 1, FIND("""", B3) - FIND("'", B3) - 1) / 3600) -> 45.50416667
A4: Golden Meadow Sanctuary | B4: 36° 45' 0" N | C4: 98° 30' 0" W | D4: 36.75
A5: Crystal Falls Reserve | B5: 39° 15' 30" N | C5: 105° 30' 15" W | D5: 39.25833333
A6: Blue Ridge Wildlife Refuge | B6: 38° 20' 0" N | C6: 82° 15' 0" W | D6: 38.33333333
A7: Mystic Forest Preserve | B7: 42° 10' 0" N | C7: 74° 5' 0" W | D7: 42.16666667
A8: Twilight Canyon Reserve | B8: 33° 45' 15" N | C8: 116° 30' 30" W | D8: 33.75416667
A9: Starlight Marsh Sanctuary | B9: 29° 30' 0" N | C9: 81° 15' 0" W | D9: 29.5
A10: Whispering Pines Reserve | B10: 37° 25' 0" N | C10: 122° 10' 0" W | D10: 37.41666667
A11: Frosty Peaks Nature Reserve | B11: 40° 30' 0" N | C11: 105° 15' 0" W | D11: 40.5

Sheet Sheet3
A1: Reserve Name | B1: Latitude (DMS) | C1: Longitude (DMS)
A2: Emerald Valley Reserve | B2: 34° 12' 30" N | C2: 118° 15' 45" W | D2: =SUM(_xlfn.DROP(_xlfn.TEXTSPLIT(B2,{"°","'",""""}), , -1)/{1,60,3600}) -> 34.20833333
A3: Silver Lake Preserve | B3: 45° 30' 15" N | C3: 120° 45' 30" W | D3: =SUM(_xlfn.DROP(_xlfn.TEXTSPLIT(B3,{"°","'",""""}), , -1)/{1,60,3600}) -> 45.50416667
A4: Golden Meadow Sanctuary | B4: 36° 45' 0" N | C4: 98° 30' 0" W | D4: =SUM(_xlfn.DROP(_xlfn.TEXTSPLIT(B4,{"°","'",""""}), , -1)/{1,60,3600}) -> 36.75
A5: Crystal Falls Reserve | B5: 39° 15' 30" N | C5: 105° 30' 15" W | D5: =SUM(_xlfn.DROP(_xlfn.TEXTSPLIT(B5,{"°","'",""""}), , -1)/{1,60,3600}) -> 39.25833333
A6: Blue Ridge Wildlife Refuge | B6: 38° 20' 0" N | C6: 82° 15' 0" W | D6: =SUM(_xlfn.DROP(_xlfn.TEXTSPLIT(B6,{"°","'",""""}), , -1)/{1,60,3600}) -> 38.33333333
A7: Mystic Forest Preserve | B7: 42° 10' 0" N | C7: 74° 5' 0" W | D7: =SUM(_xlfn.DROP(_xlfn.TEXTSPLIT(B7,{"°","'",""""}), , -1)/{1,60,3600}) -> 42.16666667
A8: Twilight Canyon Reserve | B8: 33° 45' 15" N | C8: 116° 30' 30" W | D8: =SUM(_xlfn.DROP(_xlfn.TEXTSPLIT(B8,{"°","'",""""}), , -1)/{1,60,3600}) -> 33.75416667
A9: Starlight Marsh Sanctuary | B9: 29° 30' 0" N | C9: 81° 15' 0" W | D9: =SUM(_xlfn.DROP(_xlfn.TEXTSPLIT(B9,{"°","'",""""}), , -1)/{1,60,3600}) -> 29.5
A10: Whispering Pines Reserve | B10: 37° 25' 0" N | C10: 122° 10' 0" W | D10: =SUM(_xlfn.DROP(_xlfn.TEXTSPLIT(B10,{"°","'",""""}), , -1)/{1,60,3600}) -> 37.41666667
A11: Frosty Peaks Nature Reserve | B11: 40° 30' 0" N | C11: 105° 15' 0" W | D11: =SUM(_xlfn.DROP(_xlfn.TEXTSPLIT(B11,{"°","'",""""}), , -1)/{1,60,3600}) -> 40.5

Sheet Sheet4
A1: Reserve Name | B1: Latitude (DMS) | C1: Longitude (DMS)
A2: Emerald Valley Reserve | B2: 34° 12' 30" N | C2: 118° 15' 45" W | D2: =ConvertToDecimal(B2) -> 34.20833333
A3: Silver Lake Preserve | B3: 45° 30' 15" N | C3: 120° 45' 30" W | D3: =ConvertToDecimal(B3) -> 45.50416667
A4: Golden Meadow Sanctuary | B4: 36° 45' 0" N | C4: 98° 30' 0" W | D4: =ConvertToDecimal(B4) -> 36.75
A5: Crystal Falls Reserve | B5: 39° 15' 30" N | C5: 105° 30' 15" W | D5: =ConvertToDecimal(B5) -> 39.25833333
A6: Blue Ridge Wildlife Refuge | B6: 38° 20' 0" N | C6: 82° 15' 0" W | D6: =ConvertToDecimal(B6) -> 38.33333333
A7: Mystic Forest Preserve | B7: 42° 10' 0" N | C7: 74° 5' 0" W | D7: =ConvertToDecimal(B7) -> 42.16666667
A8: Twilight Canyon Reserve | B8: 33° 45' 15" N | C8: 116° 30' 30" W | D8: =ConvertToDecimal(B8) -> 33.75416667
A9: Starlight Marsh Sanctuary | B9: 29° 30' 0" N | C9: 81° 15' 0" W | D9: =ConvertToDecimal(B9) -> 29.5
A10: Whispering Pines Reserve | B10: 37° 25' 0" N | C10: 122° 10' 0" W | D10: =ConvertToDecimal(B10) -> 37.41666667
A11: Frosty Peaks Nature Reserve | B11: 40° 30' 0" N | C11: 105° 15' 0" W | D11: =ConvertToDecimal(B11) -> 40.5
